Cogmind - Beta 16.1 @@@ ROGUE MODE // 2026.02.15 @ 21:11:45 Player: SunShine214 Result: Destroyed by Y-64 Sentinel with Wave Gun Performance ------------- Evolutions (5) 2500 Regions Visited (13) 2600 Robots Destroyed (143) 715 Value Destroyed (3800) 3800 Prototype IDs (27) 540 Alien Tech Used (0) 0 Bonus (376) 376 TOTAL SCORE: 10531 Bonus ------- High Alert Combat Kills 76 Aligned with FarCom 300 Cogmind --------- Core Integrity 0/1000 Matter 236/600 Energy 99/100 System Corruption 0% Temperature Cool (9) Movement Rolling (80) Location -5/Upper Caves Parts ------- > --- POWER (2) -------- (None) > --- PROPULSION (6) --- Wheel > --- UTILITY (7) ------ Improved Matter Compressor Advanced Targeting Computer Launcher Guidance Computer Advanced Thermal Shield Hacking Suite System Shield > --- WEAPON (2) ------- (None) > --- INVENTORY (5) ---- Neutrino Core Improved Focal Shield Railgun Remote Datajack Improved Plasma Cutter Peak State ------------ > --- POWER ------------ Micro Nuclear Core > --- PROPULSION ------- Armored Treads Armored Huge Wheel Armored Huge Wheel > --- UTILITY ---------- Improved Cooling System Improved Signal Interpreter Advanced Targeting Computer Improved Medium Armor Plating Medium Reflective Plating > --- WEAPON ----------- AWS/Thermal > --- INVENTORY -------- Launcher Guidance Computer Relay Coupler [Sentry] Heavy Missile Launcher Heavy Missile Launcher Remote Datajack [Rating: 59] Favorites ----------- Power Light Ion Engine Engine Light Ion Engine Power Core Micro Nuclear Core Propulsion Light Treads Treads Light Treads Leg Aluminum Leg Wheel Armored Huge Wheel Flight Unit Flight Unit Utility Small Storage Unit Device Structural Scanner Storage Small Storage Unit Processor Improved Signal Interpreter Hackware Hacking Suite Protection Hardened Medium Armor Plating Weapon Great Maul Energy Gun Heavy Laser Energy Cannon Light EM Pulse Cannon Ballistic Gun Assault Rifle Ballistic Cannon Advanced Assault Cannon Launcher Mini Grenade Launcher Special Weapon Mining Laser Impact Weapon Great Maul Slashing Weapon Katana Build | -11 -10 -10 -9 -9 -9 -8 -8 -7 -7 -7 -6 -5 -5 ------- Run | Yrd Mat Min Mat Min Exi Min Mat Fac Was Fac Fac Fac Upp Slots Evolved 10 | . . . 2 . . . 2 2 . . 2 2 . Power 1 | . . . . . . . . . . . . 1 . Propulsion 4 | . . . . . . . 2 1 . . . 1 . Utility 5 | . . . 2 . . . . 1 . . 2 . . Weapon . | . . . . . . . . . . . . . . Parts Attached 105 | 8 6 2 19 8 . . 13 2 . 25 4 13 5 Power 15 | 1 2 . 2 2 . . 1 1 . 2 . 3 1 Engine 9 | 1 2 . 2 2 . . 1 1 . . . . . Core 6 | . . . . . . . . . . 2 . 3 1 Reactor . | . . . . . . . . . . . . . . Propulsion 30 | 2 2 . 5 3 . . 7 . . 6 . 3 2 Treads 12 | 2 2 . 5 . . . . . . 3 . . . Leg 8 | . . . . . . . 6 . . . . 2 . Wheel 4 | . . . . 1 . . . . . 2 . . 1 Hover . | . . . . . . . . . . . . . . Flight 6 | . . . . 2 . . 1 . . 1 . 1 1 Utility 34 | 2 1 . 5 1 . . 5 1 . 11 3 4 1 Device 10 | 1 1 . 1 1 . . 1 . . 2 . 2 1 Storage 3 | 1 . . . . . . . . . 1 . 1 . Processor 6 | . . . 1 . . . 1 . . 2 2 . . Hackware 6 | . . . 1 . . . 2 1 . . 1 1 . Protection 9 | . . . 2 . . . 1 . . 6 . . . Artifact . | . . . . . . . . . . . . . . Weapon 26 | 3 1 2 7 2 . . . . . 6 1 3 1 Energy Gun 3 | . . . 1 . . . . . . 2 . . . Energy Cannon 2 | . . . 1 . . . . . . . . 1 . Ballistic Gun 10 | 3 . . 3 1 . . . . . 1 1 . 1 Ballistic Cannon 2 | . . . . . . . . . . 1 . 1 . Launcher 5 | . . 2 1 . . . . . . 2 . . . Special Weapon 2 | . 1 . . . . . . . . . . 1 . Impact Weapon 1 | . . . 1 . . . . . . . . . . Slashing Weapon 1 | . . . . 1 . . . . . . . . . Piercing Weapon . | . . . . . . . . . . . . . . Special Melee Weapon . | . . . . . . . . . . . . . . Unidentified Prototypes 4 | . . . 2 1 . . . . . . . 1 . Corrupted Parts 1 | . . . . 1 . . . . . . . . . System Corruption 2 | . . . . 2 . . . . . . . . . Parts Lost 46 | . . . 8 7 . . 4 . 5 9 6 5 2 Power 7 | . . . 2 1 . . . . 1 2 . 1 . Propulsion 17 | . . . 2 2 . . 3 . 2 3 1 2 2 Utility 15 | . . . 3 3 . . 1 . 2 3 3 . . Weapon 7 | . . . 1 1 . . . . . 1 2 2 . Highest Loss Streak 6 | . . . 5 6 . . 2 . 5 4 5 2 2 To Critical Strikes . | . . . . . . . . . . . . . . Average Backups 5 | 1 6 8 7 4 3 3 3 3 4 4 4 4 4 Power . | . 1 1 . . . . . . 1 . . . 1 Propulsion 1 | . 1 3 3 3 1 1 . 1 1 . 1 . . Utility 1 | . 1 2 . . . . . . . 1 2 2 1 Weapon 1 | 1 1 2 2 1 1 2 2 1 1 1 . . . Tool/Special . | . . . . . . . . . . . . . . Unused Backups 14 | . 1 . . 2 1 . 1 1 . 3 . 2 3 Power . | . . . . . . . . . . . . . . Propulsion 3 | . 1 . . 1 1 . . . . . . . . Utility 6 | . . . . . . . 1 . . 3 . 1 1 Weapon 4 | . . . . 1 . . . 1 . . . 1 1 Tool/Special 1 | . . . . . . . . . . . . . 1 Average Slot Usage (%) 74 | . 100 100 85 70 66 66 92 83 43 65 51 29 40 Engine 5 | . 14 14 7 2 . . 8 7 2 . . . . Treads 10 | . 28 28 20 9 . . . . . 7 3 . . Leg 4 | . . . . . . . 24 23 9 . . 1 . Wheel 2 | . . . . 3 . . . . . 11 . . . Flight 2 | . . . . 7 22 22 8 . . . . 1 2 Device 6 | . 14 14 10 7 11 11 5 . . 4 . . 4 Storage 5 | . 14 14 11 2 . . . . . 1 4 1 5 Processor 9 | . . . 7 11 11 11 11 7 7 11 23 11 11 Hackware 4 | . . . . . . . 10 23 14 . 5 6 11 Protection 5 | . . . 5 5 . . 6 7 2 11 3 . . Energy Gun 1 | . . . . . . . . . . 5 . . . Energy Cannon 1 | . . . 5 . . . . . . . . . . Ballistic Gun 5 | . 27 20 4 5 . . . . . 3 3 . 2 Launcher 3 | . . 7 11 2 . . . . . 1 3 . . Impact Weapon 2 | . . . . 8 11 11 9 7 3 . . . . Slashing Weapon 2 | . . . . 4 11 11 9 6 2 . . . . Peak Build Rating 59 | 9 9 8 15 14 14 14 30 34 34 59 34 30 40 Average Rating 22 | 5 7 8 11 11 13 14 26 33 15 41 26 21 33 On Entrance 15 | . 9 8 8 13 13 14 14 29 34 5 20 15 30 Avg Prop Armor Cover (%) 7 | . . . . 16 . . 2 . . 9 . . . Naked Turns . | . . . . . . . . . . . . . . Heaviest Build 39 | 14 14 14 19 19 7 7 22 24 24 39 36 29 13 Greatest Support 56 | 40 40 40 40 40 9 9 47 37 37 56 20 36 10 Greatest Overweight (x) 11 | . . . . 1 . . . . . 1 11 9 4 Average Overweight (x) . | . . . . . . . . . . . . . 1 Largest Inventory Capacity 8 | 8 8 8 8 8 5 5 5 5 5 8 8 5 5 Average Capacity 6 | 7 8 8 8 5 5 5 5 5 5 5 7 5 5 Most Carried 8 | 3 8 8 8 8 5 5 5 5 5 8 6 5 5 Average Carried 5 | 1 6 8 7 4 4 5 4 4 5 5 4 4 4 Final Capacity 8 | 8 8 8 8 5 5 5 5 5 5 8 5 5 5 Final Carried 8 | 3 8 8 8 5 5 5 5 5 5 7 4 5 5 Class Distribution -------------------- 71% | Mutant 13% | Hacker-Mutant 7% | Scavenger-Assassin 5% | Scavenger-Mutant Dominant Class ---------------- Mutant | -10/Materials Mutant | -10/Mines Mutant | -9/Materials Mutant | -9/Mines Mutant | -9/Exiles Mutant | -8/Mines Scavenger-Assassin | -8/Materials Hacker-Mutant | -7/Factory Hacker-Mutant | -7/Waste Mutant | -7/Factory Mutant | -6/Factory Mutant | -5/Factory Hacker-Mutant | -5/Upper Caves Resources | -11 -10 -10 -9 -9 -9 -8 -8 -7 -7 -7 -6 -5 -5 ----------- Run | Yrd Mat Min Mat Min Exi Min Mat Fac Was Fac Fac Fac Upp Matter Collected 2508 | 289 358 115 375 302 . . 115 . . 518 26 219 191 Remotely 200 | . . . . 200 . . . . . . . . . Salvage Created 4075 | 100 444 236 858 257 . . 766 . . 1103 1 109 201 Parts 275 | 7 41 21 58 15 . . 46 . . 65 2 7 13 Haulers Intercepted 8 | . 2 . 4 . . . 1 . . 1 . . . Recyclers Shooed . | . . . . . . . . . . . . . . Parts Field Recycled . | . . . . . . . . . . . . . . Retrieved Matter . | . . . . . . . . . . . . . . Parts Self-Destructed 13 | . . . . . . . . . . . . . 13 Prevented . | . . . . . . . . . . . . . . Parts Restored . | . . . . . . . . . . . . . . Kills | -11 -10 -10 -9 -9 -9 -8 -8 -7 -7 -7 -6 -5 -5 ------- Run | Yrd Mat Min Mat Min Exi Min Mat Fac Was Fac Fac Fac Upp Combat Hostiles Destroyed 93 | . 10 7 22 6 . . 12 . . 27 . 2 7 Melee 16 | . . . 2 2 . . 12 . . . . . . Guns 31 | . 10 1 . . . . . . . 13 . . 7 Cannons 11 | . . . 6 . . . . . . 3 . 2 . AOE 33 | . . 6 13 4 . . . . . 10 . . . Classes Destroyed 14 | 2 6 . 2 1 . . 1 . . 2 . . . Worker 10 | . . . 2 6 . . 1 . . 1 . . . Builder 8 | . 1 1 1 2 . . . . . 2 1 . . Tunneler 6 | 2 1 . 1 1 . . . . . 1 . . . Hauler 8 | . 2 . 4 . . . 1 . . 1 . . . Recycler 5 | 1 . 1 1 1 . . . . . 1 . . . Operator 4 | . 1 . 2 . . . 1 . . . . . . Watcher 9 | . 2 . 4 . . . 3 . . . . . . Swarmer 35 | . 6 3 8 4 . . 1 . . 7 . . 6 Grunt 29 | . 4 4 8 1 . . 4 . . 8 . . . Duelist 1 | . . . . 1 . . . . . . . . . Sentry 13 | . . . 6 . . . 5 . . 2 . . . Specialist 1 | . . . . . . . . . . 1 . . . Hunter 9 | . . . . . . . 2 . . 5 . 2 . Programmer 5 | . . . . . . . . . . 4 . . 1 Best Kill Streak 11 | 3 6 6 11 10 . . 4 . . 10 1 2 5 Combat Bots Only 10 | . 5 4 8 4 . . 4 . . 10 . 2 5 Max Kills in Single Turn 4 | 1 1 2 4 2 . . 1 . . 4 1 1 1 Gunslinging . | . . . . . . . . . . . . . . Exploded 4 | . . 2 3 2 . . . . . 4 . . . Melee 1 | . . . 1 1 . . 1 . . . . . . Uniques/NPCs Destroyed . | . . . . . . . . . . . . . . Combat | -11 -10 -10 -9 -9 -9 -8 -8 -7 -7 -7 -6 -5 -5 -------- Run | Yrd Mat Min Mat Min Exi Min Mat Fac Was Fac Fac Fac Upp Hostile Shots Fired 891 | . 69 14 112 28 . . 82 . 5 311 106 114 50 Missed 289 | . 16 3 36 3 . . 34 . 1 113 38 30 15 Hits 602 | . 53 11 76 25 . . 48 . 4 198 68 84 35 Melee 12 | . . . . 1 . . . . 4 7 . . . Projectile 590 | . 53 11 76 24 . . 48 . . 191 68 84 35 AOE 16 | . . . 1 15 . . . . . . . . . Critical Strikes 18 | . 1 . 3 . . . 1 . 1 5 2 5 . Part Disruptions 1 | . . . . . . . . . . 1 . . . Damage Taken 9626 | . 528 157 1124 766 . . 647 . 185 2915 1105 1648 551 Core 2640 | . 130 36 160 159 . . 120 . 132 316 574 706 307 Absorbed by Shields . | . . . . . . . . . . . . . . Ignored by Resistances 75 | . . . . . . . . . . 75 . . . Regen/Repaired (Parts) 35 | . . . . . . . . 35 . . . . . Core Remaining (%) 49 | 100 . 33 . . . 20 78 . . 36 32 . . Volleys Fired 220 | 17 56 10 41 4 . . . . . 64 3 7 18 Largest 2 | 2 2 2 2 2 . . . . . 2 1 2 1 Hottest 137 | 40 120 50 86 53 . . . . . 109 39 137 35 Shots Fired 422 | 34 112 19 71 8 . . . . . 144 3 13 18 Gun 306 | 34 111 10 17 4 . . . . . 110 2 . 18 Cannon 62 | . . . 24 . . . . . . 25 . 13 . Launcher 53 | . . 9 30 4 . . . . . 9 1 . . Special 1 | . 1 . . . . . . . . . . . . Kinetic 261 | 34 111 10 17 4 . . . . . 59 2 6 18 Thermal 84 | . 1 . . . . . . . . 76 . 7 . Explosive 53 | . . 9 30 4 . . . . . 9 1 . . Electromagnetic 24 | . . . 24 . . . . . . . . . . Robot Hit Streak 17 | 6 7 13 7 3 . . . . . 17 5 7 3 Robot Miss Streak 9 | 2 9 1 2 5 . . . . . 5 1 5 2 Penetration Max . | . . . . . . . . . . . . . . Secondary Targets 2 | . 2 . . . . . . . . . . . . Max Gunslinging Chain 1 | . 1 . . . . . . . . . . . . Autonomous 54 | . . . . . . . . . . 54 . . . Shots Hit Robots 320 | 23 63 13 38 18 . . 36 . . 110 2 7 10 Core Hits 235 | 5 27 15 53 8 . . 19 . . 92 4 4 8 Critical Kills 1 | . . . . . . . . . . . . . 1 Critical Parts Destroyed 6 | . 1 . 1 3 . . 1 . . . . . . Critical Strikes 15 | . 1 . 2 4 . . 4 . . 3 . . 1 Burn 3 | . . . . . . . . . . 3 . . . Destroy 2 | . 1 . . . . . . . . . . . 1 Corrupt 1 | . . . 1 . . . . . . . . . . Smash 5 | . . . 1 3 . . 1 . . . . . . Sever 4 | . . . . 1 . . 3 . . . . . . Melee Attacks 88 | . . . 10 16 . . 61 1 . . . . . Impact 30 | . . . 10 12 . . 8 . . . . . . Slashing 58 | . . . . 4 . . 53 1 . . . . . Piercing . | . . . . . . . . . . . . . . Sneak Attacks 17 | . . . . 10 . . 7 . . . . . . Combat Hostiles 1 | . . . . . . . 1 . . . . . . Follow-up Attacks 3 | . . . . . . . 3 . . . . . . Damage Inflicted 11036 | 257 665 561 2052 1432 . . 1414 . . 3859 214 274 308 Guns 3747 | 255 665 82 102 16 . . . . . 2255 64 . 308 Cannons 1140 | . . . 372 . . . . . . 509 . 259 . Explosions 3270 | . . 470 1391 280 . . . . . 1018 111 . . Melee 2734 | . . . 184 1136 . . 1414 . . . . . . Ramming 145 | 2 . 9 3 . . . . . . 77 39 15 . Kinetic 2789 | 255 665 82 102 16 . . . . . 1179 64 118 308 Thermal 1726 | . . . . . . . . . . 1585 . 141 . Explosive 3270 | . . 470 1391 280 . . . . . 1018 111 . . Electromagnetic 372 | . . . 372 . . . . . . . . . . Impact 1262 | . . . 184 932 . . 146 . . . . . . Slashing 1472 | . . . . 204 . . 1268 . . . . . . Piercing . | . . . . . . . . . . . . . . Highest Corruption 15 | . . . . 2 2 2 . . 7 15 5 . . Average Corruption 6 | . . . . 2 2 2 . . 7 8 4 . . Corruption Purged . | . . . . . . . . . . . . . . Corruption Blocked . | . . . . . . . . . . . . . . Effects 58 | . . . . 4 . . . . 1 49 4 . . Message Errors 14 | . . . . . . . . . . 13 1 . . Matter Fused 16 | . . . . 1 . . . . . 13 2 . . Heat Flow Errors 7 | . . . . . . . . . . 7 . . . Energy Discharges 4 | . . . . . . . . . 1 2 1 . . Data Loss (minor) 7 | . . . . 2 . . . . . 5 . . . Data Loss (major) 6 | . . . . 1 . . . . . 5 . . . Misfires 1 | . . . . . . . . . . 1 . . . Misdirections 1 | . . . . . . . . . . 1 . . . Weapon Failures 2 | . . . . . . . . . . 2 . . . Overload Shots . | . . . . . . . . . . . . . . Overflow Damage 912 | . . 6 53 724 . . 75 . . 32 22 . . Projectiles . | . . . . . . . . . . . . . . Explosions 115 | . . 6 4 51 . . . . . 32 22 . . Melee 797 | . . . 49 673 . . 75 . . . . . . Knockbacks 12 | . . . . 2 . . . . . 6 1 3 . Impact 4 | . . . . 2 . . . . . . 1 1 . Kinetic 8 | . . . . . . . . . . 6 . 2 . Secondary . | . . . . . . . . . . . . . . Self-Inflicted Damage 296 | . . 15 186 30 . . . . . 54 11 . . Shots 13 | . . 1 9 2 . . . . . 1 . . . Rammed 24 | 1 . 1 1 . . . . . . 8 13 . . Targets Rammed 35 | 1 . 1 1 . . . . . . 8 13 11 . Kicked 11 | . . . . . . . . . . . . 11 . Crushed . | . . . . . . . . . . . . . . Highest Temperature 349 | . 40 7 134 . . . 1 . . 349 . 234 . Average Temperature 61 | . 14 3 31 . . . 1 . . 81 . 99 . Received Heat Transfer 2133 | . 138 72 261 24 . . 216 . . 564 201 639 18 Siege Activations . | . . . . . . . . . . . . . . Martial Activations . | . . . . . . . . . . . . . . Shielding Activations . | . . . . . . . . . . . . . . Robots Disrupted . | . . . . . . . . . . . . . . Combat Hostiles . | . . . . . . . . . . . . . . Robots Corrupted 3 | . . . 1 2 . . . . . . . . . Combat Hostiles 1 | . . . 1 . . . . . . . . . . Parts Fried 13 | . . . 2 11 . . . . . . . . . Impact Corruptions 18 | . . . 2 15 . . 1 . . . . . . Robots Melted 1 | . . . . . . . . . . 1 . . . Combat Hostiles 1 | . . . . . . . . . . 1 . . . Parts Melted 2 | . . . . . . . . . . 2 . . . Heat Transferred 2126 | . . . . . . . . . . 1978 . 148 . Parts Sabotaged . | . . . . . . . . . . . . . . Parts Stolen . | . . . . . . . . . . . . . . Parts Stripped . | . . . . . . . . . . . . . . Power Chain Reactions . | . . . . . . . . . . . . . . Alert | -11 -10 -10 -9 -9 -9 -8 -8 -7 -7 -7 -6 -5 -5 ------- Run | Yrd Mat Min Mat Min Exi Min Mat Fac Was Fac Fac Fac Upp Maximum Alert Level 2 | . . 1 2 1 . . . . . 2 1 . . Low Security (%) 75 | 100 100 98 59 66 . 100 100 100 100 44 61 100 . Level 1 20 | . . 1 26 33 . . . . . 47 38 . . Level 2 4 | . . . 14 . . . . . . 8 . . . Level 3 . | . . . . . . . . . . . . . . Level 4 . | . . . . . . . . . . . . . . Level 5 . | . . . . . . . . . . . . . . High Security . | . . . . . . . . . . . . . . Max Security . | . . . . . . . . . . . . . . Peak Influence 609 | 5 176 200 457 280 . . 121 14 . 609 278 83 . Initial 278 | . . 43 74 171 . . . 14 . . 278 72 . Average 120 | . 48 85 178 202 . . 33 1 . 214 182 24 . Influence Increases 3803 | 15 351 217 860 227 . . 509 17 . 1130 136 131 210 Destroy 0b10 Robot/C 1860 | . 200 140 440 120 . . 240 . . 540 . 40 140 Destroy 0b10 Robot/NC 250 | 15 35 10 75 50 . . 30 . . 30 5 . . Destroy Leader 424 | . 48 30 116 20 . . 88 . . 102 . 10 10 Successful Hack 101 | . 22 . 10 . . . 7 16 . 46 . . . Disable Machine 135 | . . . 30 . . . 15 . . 60 15 15 . Anti-Garrison Action 200 | . . . . . . . . . . 200 . . . Destroy Structure 338 | . 1 37 174 22 . . 9 1 . 77 11 6 . Partial Spotted 30 | . . . . . . . 15 . . . . 15 . Lose Combat Pursuer 465 | . 45 . 15 15 . . 105 . . 75 105 45 60 Influence Decreases 3753 | 15 239 139 609 500 168 . 478 48 . 561 557 279 160 Entered New Map 1007 | . . 69 116 270 168 . . 17 . . 291 76 . Time Decay 2251 | 15 239 70 416 160 . . 333 31 . 471 206 170 140 Lost Part 380 | . . . 77 70 . . 30 . . 90 60 33 20 Purge Threat 115 | . . . . . . . 115 . . . . . . Squads Dispatched 17 | . 1 . 1 . . . 4 . . 8 3 . . Investigation 3 | . . . . . . . 1 . . 2 . . . Extermination 2 | . . . . . . . . . . 2 . . . Reinforcement 8 | . 1 . 1 . . . 1 . . 2 3 . . Assault 1 | . . . . . . . 1 . . . . . . Garrison 3 | . . . . . . . 1 . . 2 . . . Intercept . | . . . . . . . . . . . . . . Searches Triggered . | . . . . . . . . . . . . . . Construction Impeded 1 | . . . . . . . . . . 1 . . . Haulers Reinforced 2 | . . . . . . . . . . 1 1 . . Active Scanning Responses . | . . . . . . . . . . . . . . Cargo Convoy Interrupts 1 | . . . . . . . . . . 1 . . . Stealth | -11 -10 -10 -9 -9 -9 -8 -8 -7 -7 -7 -6 -5 -5 --------- Run | Yrd Mat Min Mat Min Exi Min Mat Fac Was Fac Fac Fac Upp Distress Signals 9 | . 4 . 1 . . . . . . 3 1 . . Communications Jammed . | . . . . . . . . . . . . . . Distress Signals . | . . . . . . . . . . . . . . Times Spotted 175 | . 19 7 30 8 . . 28 . 6 43 14 9 11 Peak Tracking Total 10 | . 8 3 5 2 . . 5 . 6 10 9 3 8 Tactical Retreats 19 | . 1 . 1 1 . . 4 . . 4 4 1 3 Traps | -11 -10 -10 -9 -9 -9 -8 -8 -7 -7 -7 -6 -5 -5 ------- Run | Yrd Mat Min Mat Min Exi Min Mat Fac Was Fac Fac Fac Upp Traps Triggered 8 | . . . . . . . . 1 . 2 . 5 . Indirectly . | . . . . . . . . . . . . . . Trap Hack Attempts . | . . . . . . . . . . . . . . Triggered . | . . . . . . . . . . . . . . Disarmed . | . . . . . . . . . . . . . . Reprogrammed . | . . . . . . . . . . . . . . Reused . | . . . . . . . . . . . . . . Traps Extracted . | . . . . . . . . . . . . . . Installed . | . . . . . . . . . . . . . . Triggered . | . . . . . . . . . . . . . . Machines | -11 -10 -10 -9 -9 -9 -8 -8 -7 -7 -7 -6 -5 -5 ---------- Run | Yrd Mat Min Mat Min Exi Min Mat Fac Was Fac Fac Fac Upp Machines Disabled 10 | . . . 2 . . . 1 . . 4 1 1 1 Max in Single Turn 1 | . . . 1 . . . 1 . . 1 1 1 1 Garrison Access 4 | . . . . . . . 1 . . 1 . 2 . Machines Repaired . | . . . . . . . . . . . . . . Machines Dismantled . | . . . . . . . . . . . . . . Machines Sabotaged . | . . . . . . . . . . . . . . Overloaded Fab Kills . | . . . . . . . . . . . . . . Hacking | -11 -10 -10 -9 -9 -9 -8 -8 -7 -7 -7 -6 -5 -5 --------- Run | Yrd Mat Min Mat Min Exi Min Mat Fac Was Fac Fac Fac Upp Machines Accessed 36 | . 5 . 9 . 1 . 4 4 . 4 . 8 1 Terminals 24 | . 5 . 8 . . . 3 2 . 1 . 5 . Fabricators 1 | . . . . . . . . . . 1 . . . Repair Stations 1 | . . . . . . . . 1 . . . . . Recycling Units 2 | . . . . . . . . . . 1 . 1 . Scanalyzers 2 | . . . 1 . . . . 1 . . . . . Garrison Access 4 | . . . . . . . 1 . . 1 . 2 . Total Hacks 68 | . 5 . 18 . 1 . 13 8 . 8 . 14 1 Successful 21 | . 2 . 4 . 1 . 3 3 . 4 . 3 1 Failed 47 | . 3 . 14 . . . 10 5 . 4 . 11 . Catastrophic 26 | . 3 . 6 . . . 7 2 . 1 . 7 . Database Lockouts . | . . . . . . . . . . . . . . Manual 37 | . 4 . 11 . 1 . 7 2 . 4 . 8 . Terminals 46 | . 5 . 16 . . . 11 2 . 3 . 9 . Fabricators 1 | . . . . . . . . . . 1 . . . Repair Stations 4 | . . . . . . . . 4 . . . . . Recycling Units 3 | . . . . . . . . . . 1 . 2 . Scanalyzers 4 | . . . 2 . . . . 2 . . . . . Garrison Access 8 | . . . . . . . 2 . . 3 . 3 . Terminal Hacks 12 | . 2 . 3 . 1 . 2 . . 2 . 1 1 Record 1 | . . . . . . . . . . 1 . . . Robot Analysis 2 | . . . 1 . . . . . . . . 1 . Open Door 1 | . . . . . . . . . . . . . 1 Level Access Points 1 | . . . . . . . . . . 1 . . . Branch Access Points 1 | . . . . . . . 1 . . . . . . Unreport Threat 1 | . . . . . . . 1 . . . . . . Hauler Manifests 1 | . 1 . . . . . . . . . . . . Registered Components 2 | . 1 . 1 . . . . . . . . . . Zone Layout 1 | . . . 1 . . . . . . . . . . Proto ID Catalog 1 | . . . . . 1 . . . . . . . . Fabricator Hacks 1 | . . . . . . . . . . 1 . . . Build 1 | . . . . . . . . . . 1 . . . Repair Station Hacks 2 | . . . . . . . . 2 . . . . . Scan Component 1 | . . . . . . . . 1 . . . . . Repair 1 | . . . . . . . . 1 . . . . . Recycling Unit Hacks . | . . . . . . . . . . . . . . Scanalyzer 2 | . . . 1 . . . . 1 . . . . . Retrieve Study 2 | . . . 1 . . . . 1 . . . . . Garrison Access Hacks 3 | . . . . . . . 1 . . . . 2 . Seal Access 3 | . . . . . . . 1 . . . . 2 . Unauthorized Hacks 1 | . . . . . . . . . . 1 . . . Terminals . | . . . . . . . . . . . . . . Fabricators . | . . . . . . . . . . . . . . Repair Stations . | . . . . . . . . . . . . . . Recycling Units . | . . . . . . . . . . . . . . Scanalyzers . | . . . . . . . . . . . . . . Garrison Access 1 | . . . . . . . . . . 1 . . . Jam 1 | . . . . . . . . . . 1 . . . Data Cores Recovered 1 | . . . 1 . . . . . . . . . . Used . | . . . . . . . . . . . . . . Hacking Detections 30 | . 4 . 9 . . . 4 4 . 3 . 6 . Full Trace Events 1 | . . . . . . . 1 . . . . . . Feedback Events . | . . . . . . . . . . . . . . Feedback Blocked . | . . . . . . . . . . . . . . Robot Schematics Acquired . | . . . . . . . . . . . . . . Robots Built . | . . . . . . . . . . . . . . Authchips . | . . . . . . . . . . . . . . Time . | . . . . . . . . . . . . . . Total Robot Build Rating . | . . . . . . . . . . . . . . Part Schematics Acquired . | . . . . . . . . . . . . . . Parts Built 2 | . . . . . . . . . . 2 . . . Authchips . | . . . . . . . . . . . . . . Time 58 | . . . . . . . . . . 58 . . . Total Part Build Rating 14 | . . . . . . . . . . 14 . . . Part Studies Acquired 2 | . . . 1 . . . . 1 . . . . . Parts Repaired 1 | . . . . . . . . 1 . . . . . Time 19 | . . . . . . . . 19 . . . . . Parts Recycled . | . . . . . . . . . . . . . . Recycled Matter . | . . . . . . . . . . . . . . Retrieved Matter . | . . . . . . . . . . . . . . Retrieved Components . | . . . . . . . . . . . . . . Parts Scanalyzed . | . . . . . . . . . . . . . . Part Schematics Acquired . | . . . . . . . . . . . . . . Parts Damaged . | . . . . . . . . . . . . . . Bothacking | -11 -10 -10 -9 -9 -9 -8 -8 -7 -7 -7 -6 -5 -5 ------------ Run | Yrd Mat Min Mat Min Exi Min Mat Fac Was Fac Fac Fac Upp Used RIF Installer . | . . . . . . . . . . . . . . Robots Hacked . | . . . . . . . . . . . . . . Non-combat . | . . . . . . . . . . . . . . Combat . | . . . . . . . . . . . . . . Robot Hacks Applied . | . . . . . . . . . . . . . . Relay Couplers Released 3 | . . . . . . . . . . 3 . . . Programmers 3 | . . . . . . . . . . 3 . . . Fabnet Peak Effective % . | . . . . . . . . . . . . . . Robots Rewired . | . . . . . . . . . . . . . . Allies Hacked . | . . . . . . . . . . . . . . Hacks Repelled . | . . . . . . . . . . . . . . Allies | -11 -10 -10 -9 -9 -9 -8 -8 -7 -7 -7 -6 -5 -5 -------- Run | Yrd Mat Min Mat Min Exi Min Mat Fac Was Fac Fac Fac Upp Total Allies 2 | . . . . 2 . . . . . . . . . Largest Group 2 | . . . . 2 . . . . . . . . . Highest-Rated Group 44 | . . . . 44 . . . . . . . . . Highest-Rated Ally 31 | . . . . 31 . . . . . . . . . Total Orders 5 | . . . . . . . . . . . . 3 2 EXPLORE 5 | . . . . . . . . . . . . 3 2 Ally Attacks 3 | . . . . 3 . . . . . . . . . Total Damage 44 | . . . . 44 . . . . . . . . . Kills . | . . . . . . . . . . . . . . Allies Corrupted . | . . . . . . . . . . . . . . Allies Melted . | . . . . . . . . . . . . . . Intel | -11 -10 -10 -9 -9 -9 -8 -8 -7 -7 -7 -6 -5 -5 ------- Run | Yrd Mat Min Mat Min Exi Min Mat Fac Was Fac Fac Fac Upp Active Infowar (turns) 2361 | 21 733 159 851 . . . 597 . . . . . . Sensors 597 | . . . . . . . 597 . . . . . . Terrain 158 | 21 137 . . . . . . . . . . . . Structural 1606 | . 596 159 851 . . . . . . . . . . Robot Analysis Total 2 | . . . 1 . . . . . . . . 1 . Derelict Logs Recovered 3 | . . 1 . 2 . . . . . . . . . Drone Launches 5 | . . . . . . . . . . . . 3 2 Drone Recoveries 3 | . . . . . . . . . . . . 2 1 Exploration | -11 -10 -10 -9 -9 -9 -8 -8 -7 -7 -7 -6 -5 -5 ------------- Run | Yrd Mat Min Mat Min Exi Min Mat Fac Was Fac Fac Fac Upp Turns Passed 6816 | 138 733 159 1349 336 85 43 1069 234 68 1363 424 509 306 Spaces Moved 4994 | 50 331 79 723 431 224 116 533 187 113 968 337 645 257 Core 590 | 5 . . . 8 . . . . 91 22 250 126 88 Treads 1378 | 45 331 79 723 44 . . . . . 69 87 . . Legs 767 | . . . . . . . 481 187 22 . . 77 . Wheels 920 | . . . . 70 . . . . . 819 . . 31 Hover . | . . . . . . . . . . . . . . Flight 1339 | . . . . 309 224 116 52 . . 58 . 442 138 Fastest Speed 32 | 50 160 160 160 37 37 37 34 110 50 35 50 35 32 Average Speed 103 | 149 160 160 160 57 37 37 103 110 60 105 117 68 99 Slowest Speed 600 | 160 160 160 160 160 37 37 120 110 110 250 600 500 250 Overloaded Moves . | . . . . . . . . . . . . . . Propulsion Burnouts . | . . . . . . . . . . . . . . Robots Hopped 8 | . . . . . . . . . . 1 . 7 . Potential Cave-ins . | . . . . . . . . . . . . . . Cave-ins Triggered . | . . . . . . . . . . . . . . Exploration Rate (%) 40 | 5 61 20 65 78 62 38 42 4 87 27 14 20 48 Regions Visited 13 Branch Regions 5 Pre-discovered Areas . | . . . . . . . . . . . . . . Known Exits Taken 6 | . . . 1 1 1 1 1 . . 1 . . . Unknown Exits Taken 5 | 1 1 1 . . . . . . . . 1 1 . Scrap Searched 2 | . . 1 . 1 . . . . . . . . . Spaces Dug 22 | . 1 . 9 . . . 9 1 . 2 . . . Terrain Destroyed 459 | . 1 56 236 29 . . 9 1 . 109 7 3 8 Melee 10 | . . . . . . . 9 1 . . . . . Projectile 20 | . 1 . . . . . . . . 8 . 3 8 AOE 429 | . . 56 236 29 . . . . . 101 7 . . Terrain Rammed . | . . . . . . . . . . . . . . Walls Destroyed . | . . . . . . . . . . . . . . Machines Disabled . | . . . . . . . . . . . . . . Actions | -11 -10 -10 -9 -9 -9 -8 -8 -7 -7 -7 -6 -5 -5 --------- Run | Yrd Mat Min Mat Min Exi Min Mat Fac Was Fac Fac Fac Upp Total 6100 | 78 434 92 823 479 226 115 969 214 112 1217 356 694 291 Wait 556 | . 24 . 10 14 . . 360 19 . 116 . 10 3 Move 4966 | 49 330 78 722 430 223 115 532 187 112 965 336 630 257 Hop 8 | . . . . . . . . . . 1 . 7 . Pick Up 50 | 3 8 . 6 2 1 . 4 2 . 17 . 6 1 Fast Attach 60 | 7 . . 7 5 . . 8 1 . 15 1 12 4 Attach 20 | . . . 4 3 . . 1 1 . 5 3 1 2 Detach 11 | . . . 2 2 . . 1 . . 1 . 2 3 Swap 37 | 1 8 2 11 2 . . 4 1 . 8 . . . Drop 58 | . 8 1 9 2 2 . 6 2 . 17 . 8 3 Fire 220 | 17 56 10 41 4 . . . . . 64 3 7 18 Melee 79 | . . . 10 15 . . 53 1 . . . . . Ram 20 | . . . . . . . . . . 8 12 . . Kick 11 | . . . . . . . . . . . . 11 . Crush 4 | 1 . 1 1 . . . . . . . 1 . . Escape Stasis . | . . . . . . . . . . . . . . Rewire . | . . . . . . . . . . . . . . Trap . | . . . . . . . . . . . . . . Miscellaneous . | . . . . . . . . . . . . . . Route ------- -11/Scrapyard -10/Materials -10/Mines -9/Materials (discovered 4 exits: *Mat x3 / *Min) -9/Mines (discovered 3 exits: *Mat x2 / *Exi) -9/Exiles -8/Mines -8/Materials (discovered 2 exits: *Fac x2) -7/Factory -7/Waste -7/Factory (discovered 4 exits: *Fac x4) -6/Factory -5/Factory -5/Upper Caves History --------- Turn | Location | Event 4 | -11/Scrapyard | Discovered new exit (range 15) 139 | -11/Scrapyard | Entered Materials 316 | -10/Materials | Build established: Mutant 539 | -10/Materials | Discovered new exit (range 12) 699 | -10/Materials | Core integrity fell below 50% 872 | -10/Materials | Entered Mines 971 | -10/Mines | Discovered new exit (range 12) 996 | -10/Mines | Learned Materials trap positions 1031 | -10/Mines | Entered Materials 1031 | -9/Materials | Evolved 2 slots: Utility x2 1032 | -9/Materials | Loaded intel: 9 trap records 1476 | -9/Materials | Discovered new exit (range 4) 1485 | -9/Materials | Identified exit to Materials 1738 | -9/Materials | Discovered exit to Materials (range 16) 1906 | -9/Materials | Destroyed 8 combat bots 1913 | -9/Materials | Lost 5 parts (1p1n2u1w) 2276 | -9/Materials | Discovered exit to Materials (range 9) 2295 | -9/Materials | Discovered new exit (range 15) 2378 | -9/Materials | Identified exit to Mines 2380 | -9/Materials | Entered Mines 2402 | -9/Mines | Assembled infested the area 2457 | -9/Mines | Core integrity fell below 50% 2495 | -9/Mines | Lost 6 parts (2n3u1w) 2558 | -9/Mines | Discovered exit to Materials (range 4) 2618 | -9/Mines | Met a Derelict testing a Signal Generator 2619 | -9/Mines | Found Signal Generator 2662 | -9/Mines | Learned location of 1 exit from Materials 2669 | -9/Mines | Discovered exit to Materials (range 13) 2714 | -9/Mines | Discovered new exit (range 5) 2715 | -9/Mines | Identified exit to Exiles 2716 | -9/Mines | Entered Exiles 2725 | -9/Exiles | Met 8R-AWN 2732 | -9/Exiles | Met EX-HEX 2742 | -9/Exiles | Met EX-BIN 2746 | -9/Exiles | Aligned with FarCom system 2747 | -9/Exiles | Given EX-Vault access code 2755 | -9/Exiles | Opened EX-Vault 2759 | -9/Exiles | Found AWS/Thermal 2767 | -9/Exiles | Warned to stay clear of 0b10 Research branches 2780 | -9/Exiles | Met EX-DEC 2796 | -9/Exiles | Discovered new exit (range 10) 2801 | -9/Exiles | Identified exit to Mines 2801 | -9/Exiles | Left Exiles lab with AWS/Thermal 2801 | -9/Exiles | Entered Mines 2840 | -8/Mines | Discovered exit to Materials (range 11) 2844 | -8/Mines | Entered Materials 2844 | -8/Materials | Evolved 2 slots: Propulsion x2 2845 | -8/Materials | Identified exit to Factory 3235 | -8/Materials | Build established: Scavenger-Assassin 3484 | -8/Materials | Discovered exit to Factory (range 12) 3543 | -8/Materials | Garrison activated, responded to threat 3913 | -8/Materials | Entered Factory 3913 | -7/Factory | Evolved 2 slots: Propulsion x1, Utility x1 3914 | -7/Factory | Identified exit to Storage 3946 | -7/Factory | Build established: Hacker-Mutant 4009 | -7/Factory | Repaired Katana+ 4147 | -7/Factory | Sucked down chute 4147 | -7/Factory | Entered Waste 4155 | -7/Waste | Spotted C-40 Crusher 4155 | -7/Waste | Spotted C-40 Crusher 4161 | -7/Waste | Crushed by Compactor (1 part destroyed, 1 dropped) 4162 | -7/Waste | EMP discharged 4163 | -7/Waste | Spotted C-40 Crusher 4165 | -7/Waste | Crushed by Compactor (1 part destroyed, 1 dropped) 4170 | -7/Waste | Crushed by Compactor (1 part destroyed, 1 dropped) 4174 | -7/Waste | Spotted C-40 Crusher 4187 | -7/Waste | Spotted C-40 Crusher 4189 | -7/Waste | Crushed by Compactor (1 part destroyed, 2 dropped) 4190 | -7/Waste | Spotted C-40 Crusher 4209 | -7/Waste | Discovered new exit (range 14) 4215 | -7/Waste | Identified exit to Factory 4215 | -7/Waste | Entered Factory 4220 | -7/Factory | Lost 5 parts (1p2n2u) 4295 | -7/Factory | Identified exit to Factory 4321 | -7/Factory | Garrison activated, responded to threat 4495 | -7/Factory | Build established: Mutant 5195 | -7/Factory | System corruption reached 10% 5340 | -7/Factory | Fabricated Imp. Point Defense System (x2) 5404 | -7/Factory | Core integrity fell below 50% 5405 | -7/Factory | Cargo convoy interrupted 5444 | -7/Factory | AWS/Thermal suddenly broke down 5472 | -7/Factory | Lost 4 parts (1p1n2u) 5492 | -7/Factory | Garrison activated, responded to threat 5513 | -7/Factory | Destroyed 10 combat bots 5578 | -7/Factory | Entered another Factory area 5578 | -6/Factory | Evolved 2 slots: Utility x2 5925 | -6/Factory | Lost 5 parts (3u2w) 5943 | -6/Factory | Core integrity fell below 50% 5994 | -6/Factory | Discovered new exit (range 15) 6002 | -6/Factory | Entered another Factory area 6002 | -5/Factory | Evolved 2 slots: Power x1, Propulsion x1 6258 | -5/Factory | Core integrity fell below 50% 6479 | -5/Factory | Discovered new exit (range 15) 6511 | -5/Factory | Entered Upper Caves 6553 | -5/Upper Caves | Attracted the attention of an 0b10 outpost 6593 | -5/Upper Caves | Core integrity fell below 20% 6817 | -5/Upper Caves | Destroyed by Y-64 Sentinel with Wave Gun Last Messages --------------- 06610_ S-27 Virus destroyed. 06612_ Imp. Heat Sink fries itself beyond repair. 06613_ Lgt. Nuclear Core fries itself beyond repair. 06614_ Autogun fries itself beyond repair. 06617_ Acquired 22 matter. 06619_ VTOL Module fries itself beyond repair. 06622_ Acquired 29 matter. 06624_ Acquired 51 matter. 06668_ JJ-S3Y(k) breaks down the debris. 06754_ Acquired 3 matter. 06758_ Acquired 4 matter. 06764_ Acquired 1 matter. 06769_ Acquired 4 matter. 06773_ Acquired 5 matter. 06784_ Acquired 1 matter. 06788_ Acquired 15 matter. 06791_ Acquired Wheel. Map ----- +----------------------------------------------------+ | ????????????????????## ##?# #??????????????# | | ????????????????????# ## ###????????????# | | ?????????????? ???# ##???????????# | | ?????????????? ???# ###?????????## | | ??????????????# ??## #??????????## | | ???????????????# ??#### ## #?????? ????## | | ???????????????# ????##?# ### #????# | | ????????????????# ????### #?????? | | ??????????????????# ##?# ##??????? | | ??????????????????# ## ##???????? | | ??????????????????# ### ####????????? | | ?????????????????# #??### #???????????? | | ?????????????????# ### ### #?##???????????? | | ?????????????????###????# #??????????????? | | ???????????????????????# ## #??????????????? | | ???????????????????????# ### ##??????????????? | | ???????????????????????# ###?# ##???????????????? | | ???????????????????????##????# ######### #???? | | ?????????????????????????##### #????? | | ??????????????????????#### #????? | | ?????????????????????## ########## #????? | | ????????????????????## ##????????????? ???? | | ????????????????????# ##?????????????????????? | | ????????????????????# ##?????????????????????? | | ????????????????????### ##????????????????????? | | ??????????????????????# @ #????????????????????? | | ??????????????????????# #?????????????????? | | ????????????????????? # ??????????????? | | ???????????????????# # Y ??????????? | | ???????????????????# " #? # ?????????? | | ??????????????????# " #?###? ??????????? | | ????????????????? "" #?????? ??????????? | | ???????????????? " ??????? ## ??????????? | | ??????????????? " """ ???????? ????????????? | | ?????????????# "" ?"" ?????????????????????? | | ??????????????## ?"??? ?????????????????????? | | ???????????????# ?????? ##????????????????????? | | ???????????????? ???????? #?????????????????????? | | ????????????????????????? ??????????????????????? | | ????????????????????????? ??????????????????????? | | ????????????????????????? ??????????????????????? | | ?????????????????????????????????????????????????? | | ?????????????????????????????????????????????????? | | ?????????????????????????????????????????????????? | | ?????????????????????????????????????????????????? | | ?????????????????????????????????????????????????? | | ?????????????????????????????????????????????????? | | ?????????????????????????????????????????????????? | | ?????????????????????????????????????????????????? | | ?????????????????????????????????????????????????? | +----------------------------------------------------+ Best States ------------- Heat Dissipation 61 Energy Generation 18 Energy Capacity 310 Matter Stores 300 Matter Capacity 600 Sight Range 16 Robot Scan Range 15 Terrain Scan Range 16 Terrain Scan Density 10 Additional Mass Support 9 Armor Coverage 450 Resistance: KI 30 Resistance: TH 30 Evasion (%) 63 Targeting Accuracy 8 Launcher Accuracy 20 Target Analysis 5 Armor Integrity Analysis 30 Recoil Reduction 2 Offensive Hacking 20 Defensive Hacking 10 Item Schematics ----------------- None Robot Schematics ------------------ None Fabricated ------------ Imp. Point Defense System | x2 | -7/Factory | Preloaded Repaired ---------- Katana | 30% | -7/Factory Studied --------- Mni. Grenade Launcher | -9/Materials | Hacked Katana | -7/Factory | Hacked Alien Tech Used ----------------- None Achievements -------------- None Challenges ------------ None Game ------ Seed SpectralGrenadeCutter Manual? 0 Play Time 01:00:09 Cumulative 67.3 hours Start 2026.02.15 @ 20:12:32 End 2026.02.15 @ 21:11:45 Sessions 1 Manual Loads 0 Difficulty Rogue Special Mode None Game No. 117 Rogue 117 Adventurer 0 Explorer 0 Win Type - Total 0 Types 0/0/0/0/0/0/0/0/0/0 Lore% 35 Gallery% 40 Achievement% 29 Wizard Run 0 Options --------- Layout 1 ASCII 0 Keyboard 1 Movement Arrows Keybinds 0 Fullscreen 1 Font 24/Smallcaps Map View 50x35 Zoom Use 0% Tactical HUD 1 Map Filters NONE Filters NONE Steam 1 RUN: 8262f483-c087-415a-9e46-c4fed1ed111f